fUST/lending_fUST_20240322
["ID","MTS","AMOUNT","RATE_DAILY","PERIOD"]
[320053995,1711118317276,-2000.0,0.00047,30]
[320053996,1711118317300,-3000.35765478,0.00047,120]
[320053997,1711118317324,-373.30141735,0.00047043,30]
[320053998,1711118317349,-425.15175264,0.000472,30]
[320053999,1711118317375,-5619.517776,0.00047489,120]
[320054000,1711118317397,-825.02055587,0.00047919,30]
[320054001,1711118317422,-12000.0,0.00047945,30]
[320054002,1711118317445,-12000.0,0.00047945,30]
[320054003,1711118317467,-12000.0,0.00047945,30]
[320054004,1711118317492,-12000.0,0.00047945,30]
[320054005,1711118317516,-12000.0,0.00047945,30]
[320054006,1711118317539,-12000.0,0.00047945,30]
[320054007,1711118317562,-12000.0,0.00047945,30]
[320054008,1711118317586,-12000.0,0.00047945,30]
[320054009,1711118317609,-12000.0,0.00047945,30]
[320054010,1711118317633,-12000.0,0.00047945,30]
[320054011,1711118317657,-12000.0,0.00047945,30]
[320054012,1711118317681,-12000.0,0.00047945,30]
[320054013,1711118317705,-12000.0,0.00047945,30]
[320054014,1711118317728,-12000.0,0.00047945,30]
[320054015,1711118317758,-12000.0,0.00047945,30]
[320054016,1711118317782,-9999.06471482,0.00047945,30]
[320054017,1711118317807,-997.0,0.000483,30]
[320054018,1711118317988,-997.0,0.000483,30]
[320054019,1711118318016,-997.0,0.000483,30]
[320054020,1711118318042,-997.0,0.000483,30]
[320054021,1711118318067,-5900.0,0.000488,60]
[320054022,1711118318092,-49978.51940763,0.000488,60]
[320054023,1711118318120,-2000.0,0.00049,68]
[320054024,1711118318146,-2988.490159,0.0004901,68]
[320054025,1711118318171,-500.0,0.00049315,120]
[320054026,1711118318336,594.80533932,0.00039999,31]
[320054027,1711118321028,823.355,0.00047158,120]
[320054028,1711118321346,823.355,0.00047158,120]
[320054029,1711118321397,823.356,0.00047158,120]
[320054030,1711118321459,823.355,0.00047158,120]
[320054031,1711118321519,823.356,0.00047158,120]
[320054032,1711118321558,225.679,0.00047158,120]
[320054033,1711118322038,225.679,0.00047158,120]
[320054034,1711118322088,225.679,0.00047158,120]
[320054035,1711118322147,225.679,0.00047158,120]
[320054036,1711118322202,225.679,0.00047158,120]
[320054037,1711118405832,-160.43342052,0.00020813,2]
[320054175,1711119032879,-1350.6488773,0.00023063,2]
[320054176,1711119032889,-3531.3527461,0.00023508,2]
[320054177,1711119032899,-210.224084,0.0002378,2]
[320054178,1711119032908,-171.64352954,0.00023915,2]
[320054179,1711119032918,-206.24255815,0.00023917,2]
[320054180,1711119032928,-406.16093233,0.00024009,2]
[320054181,1711119032937,-47756.35197388,0.00024012,2]
[320054182,1711119032946,-22227.2152987,0.00024013,2]
[320054183,1711119032959,-5672.6047013,0.00024013,2]
[320054184,1711119032969,-24900.0,0.00024017,2]
[320054185,1711119032978,-380.0,0.00024658,2]
[320054186,1711119032988,-868.761485,0.00024663,2]
[320054187,1711119032998,-7752.82337168,0.00025,2]
[320054188,1711119033007,-568.83552835,0.00025737,2]
[320054189,1711119033017,-170.941398,0.00025746,2]
[320054190,1711119033026,-7024.50061931,0.00025918,2]
[320054191,1711119033037,-410.19112987,0.00026016,2]
[320054192,1711119033048,-234.78242897,0.00026016,2]
[320054193,1711119033058,-469.15229474,0.00026016,2]
[320054194,1711119033068,-3157.0,0.00027,2]
[320054195,1711119033077,-1618.86114083,0.00027194,2]
[320054196,1711119033086,-215.89741008,0.00027195,2]
[320054197,1711119033096,-323.68323187,0.00027195,2]
[320054198,1711119033105,-617.12366123,0.00027195,2]
[320054199,1711119033114,-815.66428976,0.00027195,2]
[320054200,1711119033124,-779.02737889,0.00027195,2]
[320054201,1711119033133,-275.42113425,0.00027195,2]
[320054202,1711119033142,-987.38885002,0.00027195,2]
[320054203,1711119033152,-1571.32607788,0.00027195,2]
[320054204,1711119033162,-2746.34065419,0.00027195,2]
[320054205,1711119033172,-891.82418922,0.00027195,2]
[320054206,1711119033182,-5537.80860274,0.00027195,2]
[320054207,1711119033191,-16996.16801795,0.00027197,3]
[320054234,1711119038297,-7752.82337168,0.00025917,2]
[320054235,1711119038308,-16388.76046968,0.00027197,3]
[320054236,1711119038318,-276000.0,0.00027197,2]
[320054237,1711119038327,-206.24255815,0.00027197,2]
[320054238,1711119038337,-1952.59772165,0.00027297,2]
[320054239,1711119038346,-685.20411728,0.00027395,2]
[320054240,1711119038355,-304.78785734,0.00027396,2]
[320054241,1711119038365,-205.13492374,0.00027396,2]
[320054242,1711119038375,-500.0,0.00027397,2]
[320054243,1711119038383,-500.0,0.00027397,2]
[320054244,1711119038392,-500.0,0.00027397,2]
[320054245,1711119038402,-558.62127513,0.00027397,2]
[320054246,1711119038411,-500.0,0.00027397,2]
[320054247,1711119038420,-500.0,0.00027397,2]
[320054248,1711119038429,-500.0,0.00027397,2]
[320054249,1711119038438,-500.0,0.00027397,2]
[320054250,1711119038447,-500.0,0.00027397,2]
[320054251,1711119038456,-500.0,0.00027397,2]
[320054252,1711119038466,-500.0,0.00027397,2]
[320054253,1711119038475,-500.0,0.00027397,2]
[320054254,1711119038484,-500.0,0.00027397,2]
[320054255,1711119038493,-500.0,0.00027397,2]
[320054256,1711119038503,-500.0,0.00027397,2]
[320054257,1711119038512,-847.92,0.00027397,2]
[320054258,1711119038521,-500.0,0.00027397,2]
[320054259,1711119038530,-500.0,0.00027397,2]
[320054260,1711119038539,-500.0,0.00027397,2]
[320054261,1711119038551,-500.0,0.00027397,2]
[320054262,1711119038560,-500.0,0.00027397,2]
[320054263,1711119038569,-692.61,0.00027397,2]
[320054264,1711119038578,-500.0,0.00027397,2]
[320054265,1711119038587,-279.05807573,0.00027397,2]
[320054266,1711119038596,-500.0,0.00027397,2]
[320054267,1711119038606,-500.85141942,0.00027397,2]
[320054268,1711119038615,-500.0,0.00027397,2]
[320054269,1711119038624,-500.0,0.00027397,2]
[320054270,1711119038636,-500.0,0.00027397,2]
[320054271,1711119038646,-509.05,0.00027397,2]
[320054272,1711119038656,-500.0,0.00027397,2]
[320054273,1711119038665,-500.0,0.00027397,2]
[320054274,1711119038674,-500.0,0.00027397,2]
[320054275,1711119038683,-630.85833321,0.00027397,2]
[320054276,1711119038693,-500.0,0.00027397,2]
[320054277,1711119038703,-151.0,0.00027397,2]
[320054278,1711119038714,-500.0,0.00027397,2]
[320054279,1711119038723,-259.15378988,0.00027397,30]
[320054280,1711119038733,-500.0,0.00027397,2]
[320054281,1711119038742,-500.0,0.00027397,2]
[320054282,1711119038751,-500.0,0.00027397,2]
[320054283,1711119038761,-500.0,0.00027397,2]
[320054284,1711119038772,-500.0,0.00027397,2]
[320054285,1711119038783,-500.0,0.00027397,2]
[320054286,1711119038794,-625.39895139,0.00027397,2]
[320054287,1711119038809,-1363.16,0.00027397,2]
[320054288,1711119038820,-500.0,0.00027397,2]
[320054289,1711119038831,-500.0,0.00027397,2]
[320054290,1711119038841,-500.0,0.00027397,2]
[320054291,1711119038851,-500.0,0.00027397,2]
[320054292,1711119038861,-500.0,0.00027397,2]
[320054293,1711119038871,-500.0,0.00027397,2]
[320054294,1711119038880,-500.0,0.00027397,2]
[320054295,1711119038889,-704.96,0.00027397,2]
[320054296,1711119038899,-1762.48,0.00027397,2]
[320054297,1711119038909,-500.0,0.00027397,2]
[320054298,1711119038918,-500.0,0.00027397,2]
[320054299,1711119038928,-842.13,0.00027397,2]
[320054300,1711119038938,-614.83,0.00027397,2]
[320054301,1711119038947,-500.0,0.00027397,2]
[320054302,1711119038957,-500.0,0.00027397,2]
[320054303,1711119038966,-403.39055599,0.00027397,2]
[320054304,1711119038976,-500.62140895,0.00027397,2]
[320054305,1711119038985,-500.0,0.00027397,2]
[320054306,1711119038995,-500.0,0.00027397,2]
[320054307,1711119039004,-500.0,0.00027397,2]
[320054308,1711119039013,-1056.53,0.00027397,2]
[320054309,1711119039023,-500.0,0.00027397,2]
[320054310,1711119039032,-2137.3,0.00027397,2]
[320054311,1711119039041,-500.0,0.00027397,2]
[320054312,1711119039053,-500.0,0.00027397,2]
[320054313,1711119039063,-1081.26,0.00027397,2]
[320054314,1711119039072,-500.0,0.00027397,2]
[320054315,1711119039081,-500.0,0.00027397,2]
[320054316,1711119039090,-525.63,0.00027397,2]
[320054317,1711119039100,-500.0,0.00027397,2]
[320054318,1711119039109,-500.0,0.00027397,2]
[320054319,1711119039119,-3047.59,0.00027397,2]
[320054320,1711119039129,-1645.17,0.00027397,2]
[320054321,1711119039138,-500.0,0.00027397,2]
[320054322,1711119039147,-500.0,0.00027397,2]
[320054323,1711119039157,-500.0,0.00027397,2]
[320054324,1711119039166,-500.0,0.00027397,2]
[320054325,1711119039176,-500.0,0.00027397,2]
[320054326,1711119039185,-500.0,0.00027397,2]
[320054327,1711119039195,-500.0,0.00027397,2]
[320054328,1711119039204,-1618.58,0.00027397,2]
[320054329,1711119039215,-969.71,0.00027397,2]
[320054330,1711119039225,-500.0,0.00027397,2]
[320054331,1711119039234,-500.0,0.00027397,2]
[320054332,1711119039244,-591.12,0.00027397,2]
[320054333,1711119039253,-500.0,0.00027397,2]
[320054334,1711119039263,-500.0,0.00027397,2]
[320054335,1711119039273,-500.0,0.00027397,2]
[320054336,1711119039283,-500.0,0.00027397,2]
[320054337,1711119039292,-500.0,0.00027397,2]
[320054338,1711119039305,-500.0,0.00027397,2]
[320054339,1711119039315,-500.0,0.00027397,2]
[320054340,1711119039325,-500.0,0.00027397,2]
[320054341,1711119039335,-452.52073159,0.00027397,2]
[320054342,1711119039345,-500.0,0.00027397,2]
[320054343,1711119039355,-500.0,0.00027397,2]
[320054344,1711119039364,-570.85928019,0.00027397,2]
[320054345,1711119039373,-500.0,0.00027397,2]
[320054346,1711119039382,-755.24,0.00027397,2]
[320054347,1711119039392,-500.0,0.00027397,2]
[320054348,1711119039401,-500.0,0.00027397,2]
[320054349,1711119039410,-520.1,0.00027397,2]
[320054350,1711119039420,-500.0,0.00027397,2]
[320054351,1711119039429,-500.0,0.00027397,2]
[320054352,1711119039438,-224.7373622,0.00027397,2]
[320054353,1711119039448,-916.66,0.00027397,2]
[320054354,1711119039457,-500.0,0.00027397,2]
[320054355,1711119039467,-500.0,0.00027397,2]
[320054356,1711119039476,-500.0,0.00027397,2]
[320054357,1711119039486,-500.0,0.00027397,2]
[320054358,1711119039495,-500.0,0.00027397,2]
[320054359,1711119039504,-502.14253907,0.00027397,2]
[320054360,1711119039514,-500.0,0.00027397,2]
[320054361,1711119039523,-500.0,0.00027397,2]
[320054362,1711119039532,-500.0,0.00027397,2]
[320054363,1711119039541,-550.0,0.00027397,2]
[320054364,1711119039553,-500.0,0.00027397,2]
[320054365,1711119039562,-500.0,0.00027397,2]
[320054366,1711119039571,-500.0,0.00027397,2]
[320054367,1711119039581,-500.0,0.00027397,2]
[320054368,1711119039590,-500.0,0.00027397,2]
[320054369,1711119039599,-653.65,0.00027397,2]
[320054370,1711119039609,-500.0,0.00027397,2]
[320054371,1711119039618,-500.0,0.00027397,2]
[320054372,1711119039627,-500.0,0.00027397,2]
[320054373,1711119039638,-500.0,0.00027397,2]
[320054374,1711119039647,-500.0,0.00027397,2]
[320054375,1711119039656,-500.0,0.00027397,2]
[320054376,1711119039667,-500.0,0.00027397,2]
[320054377,1711119039677,-500.0,0.00027397,2]
[320054378,1711119039686,-500.0,0.00027397,2]
[320054379,1711119039695,-1861.19,0.00027397,2]
[320054380,1711119039705,-500.0,0.00027397,2]
[320054381,1711119039714,-500.0,0.00027397,2]
[320054382,1711119039724,-500.0,0.00027397,2]
[320054383,1711119039733,-500.0,0.00027397,2]
[320054384,1711119039743,-500.0,0.00027397,2]
[320054385,1711119039753,-500.0,0.00027397,2]
[320054386,1711119039762,-500.0,0.00027397,2]
[320054387,1711119039771,-500.0,0.00027397,2]
[320054388,1711119039780,-500.0,0.00027397,2]
[320054389,1711119039790,-500.0,0.00027397,2]
[320054393,1711119039800,-500.0,0.00027397,2]
[320054396,1711119039809,-500.0,0.00027397,2]
[320054398,1711119039818,-500.0,0.00027397,2]
[320054399,1711119039827,-500.0,0.00027397,2]
[320054400,1711119039836,-298.13990406,0.00027397,2]
[320054402,1711119039845,-549.92,0.00027397,2]
[320054404,1711119039855,-500.0,0.00027397,2]
[320054405,1711119039864,-500.0,0.00027397,2]
[320054406,1711119039873,-500.0,0.00027397,2]
[320054407,1711119039882,-500.0,0.00027397,2]
[320054408,1711119039891,-2108.04,0.00027397,2]
[320054409,1711119039900,-500.0,0.00027397,2]
[320054410,1711119039909,-8401.09,0.00027397,2]
[320054411,1711119039917,-500.0,0.00027397,2]
[320054412,1711119039926,-2025.26,0.00027397,2]
[320054413,1711119039935,-500.0,0.00027397,2]
[320054414,1711119039945,-500.0,0.00027397,2]
[320054415,1711119039954,-2315.86,0.00027397,2]
[320054417,1711119039963,-5165.53,0.00027397,2]
[320054419,1711119039972,-500.0,0.00027397,2]
[320054421,1711119039981,-547.22,0.00027397,2]
[320054422,1711119039990,-764.57,0.00027397,2]
[320054424,1711119039999,-645.06,0.00027397,2]
[320054425,1711119040008,-500.0,0.00027397,2]
[320054426,1711119040017,-500.0,0.00027397,2]
[320054427,1711119040026,-500.0,0.00027397,2]
[320054428,1711119040035,-626.60944168,0.00027397,2]
[320054429,1711119040045,-19488.85,0.00027397,2]
[320054430,1711119040058,-500.0,0.00027397,2]
[320054431,1711119040068,-503.0735052,0.00027397,2]
[320054432,1711119040077,-500.0,0.00027397,2]
[320054433,1711119040087,-500.0,0.00027397,2]
[320054434,1711119040096,-500.0,0.00027397,2]
[320054435,1711119040105,-500.0,0.00027397,2]
[320054436,1711119040114,-500.0,0.00027397,2]
[320054437,1711119040241,-500.0,0.00027397,2]
[320054438,1711119040251,-500.0,0.00027397,2]
[320054439,1711119040260,-500.0,0.00027397,2]
[320054440,1711119040269,-500.0,0.00027397,2]
[320054441,1711119040279,-500.0,0.00027397,2]
[320054442,1711119040289,-500.0,0.00027397,2]
[320054443,1711119040303,-500.0,0.00027397,2]
[320054444,1711119040312,-500.0,0.00027397,2]
[320054445,1711119040324,-500.0,0.00027397,2]
[320054446,1711119040333,-500.0,0.00027397,2]
[320054447,1711119040343,-2965.52,0.00027397,2]
[320054448,1711119040353,-500.0,0.00027397,2]
[320054449,1711119040363,-500.0,0.00027397,2]
[320054450,1711119040372,-500.0,0.00027397,2]
[320054451,1711119040381,-500.0,0.00027397,2]
[320054452,1711119040391,-2081.01,0.00027397,2]
[320054453,1711119040400,-1000.0,0.00027397,2]
[320054454,1711119040409,-500.0,0.00027397,2]
[320054455,1711119040419,-805.61,0.00027397,2]
[320054456,1711119040428,-500.0,0.00027397,2]
[320054457,1711119040439,-500.0,0.00027397,2]
[320054458,1711119040448,-1651.79,0.00027397,2]
[320054459,1711119040458,-1362.67,0.00027397,2]
[320054460,1711119040467,-2555.84,0.00027397,2]
[320054461,1711119040476,-500.0,0.00027397,2]
[320054462,1711119040485,-500.0,0.00027397,2]
[320054463,1711119040494,-500.0,0.00027397,2]
[320054464,1711119040504,-2681.6,0.00027397,2]
[320054465,1711119040513,-500.0,0.00027397,2]
[320054466,1711119040523,-4416.9,0.00027397,2]
[320054467,1711119040534,-500.0,0.00027397,2]
[320054468,1711119040543,-500.0,0.00027397,2]
[320054469,1711119040555,-2420.16,0.00027397,2]
[320054470,1711119040565,-680.3,0.00027397,2]
[320054471,1711119040575,-1050.15,0.00027397,2]
[320054472,1711119040584,-500.0,0.00027397,2]
[320054473,1711119040593,-500.0,0.00027397,2]
[320054474,1711119040603,-500.0,0.00027397,2]
[320054475,1711119040613,-232.51884084,0.00027397,2]
[320054476,1711119040622,-500.0,0.00027397,2]
[320054477,1711119040633,-500.0,0.00027397,2]
[320054478,1711119040643,-500.0,0.00027397,2]
[320054479,1711119040653,-1090.36,0.00027397,2]
[320054480,1711119040662,-500.0,0.00027397,2]
[320054481,1711119040671,-500.0,0.00027397,2]
[320054482,1711119040681,-368.83574321,0.00027397,2]
[320054483,1711119040690,-500.0,0.00027397,2]
[320054484,1711119040699,-4599.57,0.00027397,2]
[320054485,1711119040709,-500.0,0.00027397,2]
[320054486,1711119040719,-846.22,0.00027397,2]
[320054487,1711119040728,-500.0,0.00027397,2]
[320054488,1711119040737,-500.0,0.00027397,2]
[320054489,1711119040747,-500.0,0.00027397,2]
[320054490,1711119040758,-500.0,0.00027397,2]
[320054491,1711119040767,-500.0,0.00027397,2]
[320054492,1711119040776,-500.0,0.00027397,2]
[320054493,1711119040785,-520.81521444,0.00027397,2]
[320054494,1711119040795,-500.0,0.00027397,2]
[320054495,1711119040809,-500.0,0.00027397,2]
[320054496,1711119040819,-500.0,0.00027397,2]
[320054497,1711119040828,-27335.65,0.00027397,2]
[320054498,1711119040837,-500.0,0.00027397,2]
[320054499,1711119040847,-500.0,0.00027397,2]
[320054500,1711119040856,-500.0,0.00027397,2]
[320054501,1711119040865,-500.0,0.00027397,2]
[320054502,1711119040875,-500.0,0.00027397,2]
[320054503,1711119040883,-1873.21,0.00027397,2]
[320054505,1711119040893,-500.0,0.00027397,2]
[320054507,1711119040902,-500.0,0.00027397,2]
[320054509,1711119040911,-500.0,0.00027397,2]
[320054510,1711119040921,-500.0,0.00027397,2]
[320054511,1711119040930,-500.0,0.00027397,2]
[320054512,1711119040939,-5887.96,0.00027397,2]
[320054513,1711119040948,-500.0,0.00027397,2]
[320054514,1711119040958,-500.0,0.00027397,2]
[320054516,1711119040967,-500.0,0.00027397,2]
[320054518,1711119040976,-500.0,0.00027397,2]
[320054520,1711119040985,-500.0,0.00027397,2]
[320054521,1711119040994,-500.0,0.00027397,2]
[320054523,1711119041003,-500.0,0.00027397,2]
[320054524,1711119041012,-500.0,0.00027397,2]
[320054525,1711119041021,-500.0,0.00027397,2]
[320054526,1711119041031,-25844.78,0.00027397,2]
[320054527,1711119041040,-500.0,0.00027397,2]
[320054528,1711119041049,-2201.2,0.00027397,2]
[320054529,1711119041061,-500.0,0.00027397,2]
[320054530,1711119041070,-1041.72,0.00027397,2]
[320054531,1711119041079,-500.0,0.00027397,2]
[320054532,1711119041088,-500.0,0.00027397,2]
[320054533,1711119041098,-1783.07,0.00027397,2]
[320054534,1711119041107,-500.0,0.00027397,2]
[320054535,1711119041117,-500.0,0.00027397,2]
[320054536,1711119041126,-500.0,0.00027397,2]
[320054537,1711119041135,-500.0,0.00027397,2]
[320054538,1711119041143,-531.4265579,0.00027397,2]
[320054539,1711119041153,-500.0,0.00027397,2]
[320054540,1711119041162,-500.0,0.00027397,2]
[320054541,1711119041171,-500.0,0.00027397,2]
[320054542,1711119041180,-500.0,0.00027397,2]
[320054543,1711119041189,-500.0,0.00027397,2]
[320054544,1711119041198,-500.0,0.00027397,2]
[320054545,1711119041208,-190.81052707,0.00027397,2]
[320054546,1711119041217,-500.0,0.00027397,2]
[320054547,1711119041226,-500.0,0.00027397,2]
[320054548,1711119041235,-500.0,0.00027397,2]
[320054549,1711119041243,-500.0,0.00027397,2]
[320054550,1711119041252,-500.0,0.00027397,2]
[320054551,1711119041261,-500.0,0.00027397,2]
[320054552,1711119041270,-500.0,0.00027397,2]
[320054553,1711119041279,-500.0,0.00027397,2]
[320054554,1711119041288,-500.0,0.00027397,2]
[320054555,1711119041297,-500.0,0.00027397,2]
[320054556,1711119041310,-500.0,0.00027397,2]
[320054557,1711119041319,-500.0,0.00027397,2]
[320054558,1711119041328,-500.0,0.00027397,2]
[320054559,1711119041337,-500.0,0.00027397,2]
[320054560,1711119041347,-500.0,0.00027397,2]
[320054561,1711119041356,-500.0,0.00027397,2]
[320054562,1711119041365,-500.0,0.00027397,2]
[320054563,1711119041375,-166.666666,0.00027397,2]
[320054564,1711119041384,-796.41698053,0.000275,17]
[320054565,1711119041394,-500.0,0.00027944,2]
[320054566,1711119041402,-500.0,0.00027944,2]
[320054567,1711119041412,-500.0,0.00027944,2]
[320054568,1711119041421,-500.0,0.00027944,2]
[320054569,1711119041430,-417.41,0.00027944,2]
[320054570,1711119041441,-446.92585849,0.00027944,2]
[320054571,1711119041450,-500.0,0.00027945,2]
[320054572,1711119041460,-500.0,0.00027945,2]
[320054573,1711119041469,-500.0,0.00027945,2]
[320054574,1711119041479,-500.0,0.00027945,2]
[320054576,1711119041488,-500.0,0.00027945,2]
[320054577,1711119041497,-445.30057381,0.00027945,2]
[320054579,1711119041506,-500.0,0.00027945,2]
[320054580,1711119041516,-500.0,0.00027945,2]
[320054581,1711119041525,-500.0,0.00027945,2]
[320054583,1711119041535,-847.92,0.00027945,2]
[320054585,1711119041545,-500.0,0.00027945,2]
[320054586,1711119041556,-500.0,0.00027945,2]
[320054587,1711119041566,-500.0,0.00027945,2]
[320054588,1711119041575,-692.61,0.00027945,2]
[320054589,1711119041584,-500.0,0.00027945,2]
[320054590,1711119041593,-500.0,0.00027945,2]
[320054591,1711119041603,-500.0,0.00027945,2]
[320054592,1711119041612,-500.0,0.00027945,2]
[320054593,1711119041621,-500.0,0.00027945,2]
[320054594,1711119041633,-509.05,0.00027945,2]
[320054595,1711119041643,-500.0,0.00027945,2]
[320054596,1711119041653,-500.0,0.00027945,2]
[320054597,1711119041663,-500.0,0.00027945,2]
[320054598,1711119041672,-500.0,0.00027945,2]
[320054599,1711119041682,-151.0,0.00027945,2]
[320054600,1711119041692,-500.0,0.00027945,2]
[320054601,1711119041701,-500.0,0.00027945,2]
[320054602,1711119041712,-500.0,0.00027945,2]
[320054603,1711119041721,-498.89357838,0.00027945,2]
[320054604,1711119041731,-500.0,0.00027945,2]
[320054605,1711119041741,-500.0,0.00027945,2]
[320054606,1711119041750,-1363.16,0.00027945,2]
[320054607,1711119041760,-500.0,0.00027945,2]
[320054608,1711119041769,-500.0,0.00027945,2]
[320054609,1711119041778,-500.0,0.00027945,2]
[320054610,1711119041787,-500.0,0.00027945,2]
[320054611,1711119041797,-500.0,0.00027945,2]
[320054612,1711119041808,-483.96581288,0.00027945,2]
[320054613,1711119041817,-500.0,0.00027945,2]
[320054614,1711119041826,-704.96,0.00027945,2]
[320054615,1711119041836,-1762.48,0.00027945,2]
[320054616,1711119041845,-842.13,0.00027945,2]
[320054617,1711119041854,-614.83,0.00027945,2]
[320054618,1711119041864,-500.0,0.00027945,2]
[320054619,1711119041873,-500.0,0.00027945,2]
[320054620,1711119041882,-500.0,0.00027945,2]
[320054621,1711119041891,-500.0,0.00027945,2]
[320054622,1711119041901,-500.0,0.00027945,2]
[320054623,1711119041910,-1056.53,0.00027945,2]
[320054624,1711119041919,-500.0,0.00027945,2]
[320054625,1711119041929,-2137.3,0.00027945,2]
[320054626,1711119041938,-500.0,0.00027945,2]
[320054627,1711119041949,-500.0,0.00027945,2]
[320054628,1711119041959,-1081.26,0.00027945,2]
[320054629,1711119041968,-500.0,0.00027945,2]
[320054630,1711119041977,-535.326623,0.00027945,2]
[320054631,1711119041986,-525.63,0.00027945,2]
[320054632,1711119041996,-500.0,0.00027945,2]
[320054633,1711119042005,-500.0,0.00027945,2]
[320054634,1711119042015,-3047.59,0.00027945,2]
[320054635,1711119042024,-1645.17,0.00027945,2]
[320054636,1711119042034,-500.0,0.00027945,2]
[320054637,1711119042043,-500.0,0.00027945,2]
[320054638,1711119042052,-500.0,0.00027945,2]
[320054639,1711119042061,-500.0,0.00027945,2]
[320054640,1711119042071,-500.0,0.00027945,2]
[320054641,1711119042081,-500.0,0.00027945,2]
[320054642,1711119042091,-500.0,0.00027945,2]
[320054643,1711119042100,-1618.58,0.00027945,2]
[320054644,1711119042109,-969.71,0.00027945,2]
[320054645,1711119042118,-500.0,0.00027945,2]
[320054646,1711119042128,-500.0,0.00027945,2]
[320054647,1711119042137,-591.12,0.00027945,2]
[320054648,1711119042146,-500.0,0.00027945,2]
[320054649,1711119042155,-318.76703152,0.00027945,2]
[320054650,1711119042165,-500.0,0.00027945,2]
[320054651,1711119042175,-500.0,0.00027945,2]
[320054652,1711119042183,-500.0,0.00027945,2]
[320054653,1711119042192,-500.0,0.00027945,2]
[320054654,1711119042202,-500.0,0.00027945,2]
[320054655,1711119042211,-321.61325991,0.00027945,2]
[320054656,1711119042221,-500.0,0.00027945,2]
[320054657,1711119042230,-500.0,0.00027945,2]
[320054658,1711119042240,-500.0,0.00027945,2]
[320054659,1711119042249,-755.24,0.00027945,2]
[320054660,1711119042258,-500.0,0.00027945,2]
[320054661,1711119042268,-500.0,0.00027945,2]
[320054662,1711119042278,-520.1,0.00027945,2]
[320054663,1711119042287,-500.0,0.00027945,2]
[320054664,1711119042297,-500.0,0.00027945,2]
[320054665,1711119042308,-916.66,0.00027945,2]
[320054666,1711119042318,-500.0,0.00027945,2]
[320054667,1711119042327,-500.0,0.00027945,2]
[320054668,1711119042336,-500.0,0.00027945,2]
[320054669,1711119042345,-500.0,0.00027945,2]
[320054670,1711119042354,-500.0,0.00027945,2]
[320054671,1711119042363,-500.0,0.00027945,2]
[320054672,1711119042372,-500.0,0.00027945,2]
[320054673,1711119042382,-500.0,0.00027945,2]
[320054674,1711119042391,-500.0,0.00027945,2]
[320054675,1711119042399,-500.0,0.00027945,2]
[320054676,1711119042408,-500.0,0.00027945,2]
[320054677,1711119042417,-500.0,0.00027945,2]
[320054678,1711119042426,-500.0,0.00027945,2]
[320054679,1711119042435,-653.65,0.00027945,2]
[320054680,1711119042444,-500.0,0.00027945,2]